lending/lending_fUSD_20240512
["ID","MTS","AMOUNT","RATE_DAILY","PERIOD"]
[326834221,1715479838997,-1000.0,0.00012667,2]
[326834222,1715479839006,-171.1,0.00012728,2]
[326834223,1715479839016,-1407.06069765,0.0001279,2]
[326834224,1715479840856,-2120.3113195,0.0001279,2]
[326834225,1715479840866,-6277.12201832,0.00012817,2]
[326834226,1715479840878,-6207.38098762,0.00012817,2]
[326834227,1715479840887,-1576.10117772,0.00012818,2]
[326834228,1715479840897,-1067.84055,0.0001287,2]
[326834229,1715479840906,-95.89607939,0.00012898,2]
[326834231,1715479841764,-4328.60202061,0.00012898,2]
[326834232,1715479841775,-4615.18184401,0.000129,2]
[326834233,1715479841795,-9077.54866152,0.000129,2]
[326834234,1715479841806,-8943.84023489,0.000129,2]
[326834235,1715479841818,-2121.36746976,0.000129,2]
[326834236,1715479841829,-1424.43648348,0.000129,2]
[326834237,1715479841841,-568.51731067,0.000129,2]
[326834238,1715479841874,-715.96573776,0.000129,2]
[326834239,1715479841886,-2721.95415791,0.000129,2]
[326834240,1715479841895,-363.06,0.000129,2]
[326834241,1715479841904,-1104.5647,0.000129,2]
[326834242,1715479841913,-6787.44602208,0.000129,2]
[326834258,1715479843665,-434.4604038,0.000129,2]
[326834259,1715479843677,-435.03157412,0.000129,2]
[326834260,1715479843687,-48707.29642538,0.000129,2]
[326834261,1715479843830,-7716.56327462,0.000129,2]
[326834262,1715479843843,-2944.80615595,0.000129,2]
[326834263,1715479843852,-158.60980225,0.000129,2]
[326834264,1715479843862,-231.96568418,0.000129,2]
[326834265,1715479843872,-2835.23489726,0.000129,2]
[326834266,1715479843883,-160.30658761,0.000129,2]
[326834267,1715479843894,-600.22357148,0.000129,2]
[326834268,1715479843904,-191.92118406,0.000129,2]
[326834269,1715479843913,-155.1,0.0001299,2]
[326834270,1715479843923,-161.01374764,0.00012998,2]
[326834271,1715479843933,-357.3446781,0.00012998,2]
[326834272,1715479843942,-8673.10064129,0.00012998,2]
[326834273,1715479843952,-1245.91356041,0.00012998,2]
[326834274,1715479843961,-155.27078166,0.00012999,2]
[326834275,1715479843975,-740.16373769,0.00012999,3]
[326834276,1715479843985,-91856.65432552,0.00013,2]
[326834277,1715479843994,-716086.12781662,0.00013,2]
[326834278,1715479844006,-623.25,0.00013,2]
[326834279,1715479844017,-1220.00000001,0.00013,2]
[326834280,1715479844029,-2267.5,0.00013,2]
[326834281,1715479844040,-1031.53958,0.00013,2]
[326834282,1715479844108,-826.25901472,0.00013,2]
[326834304,1715479846670,-7567.08157827,0.00013,2]
[326834306,1715479846681,-322.9200001,0.00013,2]
[326834309,1715479846693,-497.75,0.00013,2]
[326834310,1715479846704,-382.28943785,0.00013,2]
[326834311,1715479846715,-530.6,0.00013,2]
[326834312,1715479846726,-1303.58494265,0.00013,2]
[326834313,1715479846738,-272.69910537,0.00013,2]
[326834314,1715479846750,-1333.14755087,0.00013,2]
[326834315,1715479846859,-3730.04859743,0.00013,2]
[326834316,1715479846871,-1912.9668,0.00013,2]
[326834317,1715479846882,-5694.29950002,0.00013,2]
[326834318,1715479849290,481.1,0.00010959,2]
[326834320,1715479900573,91887.33051589,0.00010959,2]
[326834321,1715479922048,-150.0,0.00010959,2]
[326834322,1715479999033,-150.0,0.00010956,2]
[326834323,1715480185808,-150.0,0.00010857,2]
[326834333,1715481032693,-162.41375975,0.00010753,2]
[326834334,1715481032703,-437.58624025,0.0001085,2]
[326834342,1715481037897,-4832.40841146,0.0001085,2]
[326834343,1715481037907,-1271.62688925,0.0001085,2]
[326834344,1715481037916,-3896.23895529,0.00010851,2]
[326834345,1715481037927,-696.99937057,0.00010851,2]
[326834346,1715481037937,-150.0,0.00010852,2]
[326834347,1715481037946,-150.0,0.00010852,2]
[326834348,1715481037955,-9846.21115518,0.00010853,2]
[326834349,1715481038052,-9633.28019538,0.00010853,2]
[326834350,1715481038062,-17904.24810825,0.00010853,2]
[326834351,1715481038140,-435.4275,0.00010853,2]
[326834352,1715481038152,-1139.81574231,0.00010853,2]
[326834353,1715481038161,-536.34240333,0.00010856,2]
[326834354,1715481038171,-155.0,0.00010857,2]
[326834355,1715481038185,-176.23597455,0.00010954,2]
[326834356,1715481038195,-6667.19308298,0.00010959,2]
[326834357,1715481038207,-3534.97311205,0.00010959,2]
[326834358,1715481038217,-515.64,0.00011324,2]
[326834359,1715481038226,-165.58,0.00011398,2]
[326834360,1715481038235,-170.1,0.00011443,2]
[326834361,1715481038245,-800.0,0.00011452,2]
[326834362,1715481038254,-203.34,0.00011492,2]
[326834363,1715481038264,-250.0,0.00011498,2]
[326834364,1715481038273,-3871.86688795,0.00011569,2]
[326834366,1715481040465,-1192.975,0.00011569,2]
[326834367,1715481040504,-3000.92524176,0.00011569,2]
[326834368,1715481040516,-554.49841702,0.00011569,2]
[326834383,1715481042795,-661.66608519,0.00011569,2]
[326834384,1715481042807,-11962.95409776,0.00011569,2]
[326834385,1715481042978,-2000.0,0.00011569,2]
[326834386,1715481042990,-655.11427032,0.00011569,2]
[326834387,1715481043000,-250.0,0.00011688,2]
[326834388,1715481043010,-411.56863617,0.00011696,2]
[326834389,1715481043020,-683.32093934,0.00011698,2]
[326834390,1715481043030,-28190.64,0.00012055,2]
[326834391,1715481043040,-200.0,0.00012157,2]
[326834392,1715481043050,-1053.11171457,0.00012348,7]
[326834393,1715481043060,-256.676,0.00012448,2]
[326834394,1715481043070,-2651.2496,0.00012448,2]
[326834395,1715481043080,-181.33,0.00012463,2]
[326834396,1715481043089,-35101.96504526,0.00012548,2]
[326834397,1715481043100,-200.0,0.000126,4]
[326834398,1715481043109,-500.0,0.000127,4]
[326834399,1715481043120,-621.1765,0.000128,2]
[326834400,1715481043129,-800.0,0.000128,4]
[326834401,1715481043139,-406.26226548,0.00012806,2]
[326834402,1715481043149,-3502.08126514,0.00012816,2]
[326834403,1715481043160,-800.0,0.00012884,2]
[326834404,1715481043170,-7716.5633,0.000129,2]
[326834405,1715481043185,-158.60980225,0.000129,2]
[326834406,1715481043195,-3364.93179302,0.000129,2]
[326834407,1715481043205,-1100.0,0.000129,4]
[326834408,1715481043214,-317.77715591,0.000129,2]
[326834409,1715481043224,-191.92118406,0.000129,2]
[326834410,1715481043234,-3993.23870362,0.000129,2]
[326834411,1715481043244,-161.01374764,0.00012998,2]
[326834412,1715481043254,-8673.10064129,0.00012998,2]
[326834413,1715481043263,-357.3446781,0.00012998,2]
[326834414,1715481043273,-6271.58334344,0.00012998,2]
[326834415,1715481043284,-540.80554887,0.00012998,2]
[326834416,1715481043294,-23137.25057936,0.00012998,2]
[326834417,1715481043303,-516.6341135,0.00012998,2]
[326834418,1715481043312,-274.78124919,0.00012998,2]
[326834419,1715481043321,-198.26100783,0.00012998,2]
[326834420,1715481043330,-1245.91356041,0.00012998,2]
[326834422,1715481043339,-4441.56857018,0.00012999,2]
[326834424,1715481043349,-155.20419513,0.00012999,2]
[326834425,1715481043358,-740.16373769,0.00012999,3]
[326834426,1715481043367,-91856.65432552,0.00013,2]
[326834427,1715481043376,-602392.50297305,0.00013,2]
[326834428,1715481043387,-460.07091854,0.00013,2]
[326834429,1715481043398,-2306.6388282,0.00013,2]
[326834430,1715481043450,-805.43476892,0.00013,2]
[326834437,1715481045902,-2108.65524066,0.00013,2]
[326834439,1715481046329,-484.53774761,0.00013,2]
[326834440,1715481046340,-1397.37329969,0.00013,2]
[326834441,1715481046351,-13595.39350046,0.00013,2]
[326834442,1715481329586,-150.0,0.00010645,2]
[326834443,1715481623759,-712.13350292,0.00010628,2]
[326834444,1715482155136,-370.82893179,0.00010597,2]
[326834445,1715482155157,-1244.2402654,0.00010598,2]
[326834446,1715482155178,-540.45459162,0.00010598,2]
[326834447,1715482155200,-266.10096852,0.00010599,2]
[326834448,1715482155221,-540.80554887,0.00010606,2]
[326834449,1715482155242,-155.0,0.00010628,2]
[326834450,1715482155263,-1379.74444204,0.00010639,2]
[326834451,1715482155284,-19479.49135056,0.00010649,2]
[326834452,1715482155306,-22811.97433389,0.0001065,2]
[326834456,1715482231975,-155.0,0.0001065,2]
[326834457,1715482231985,-741.99068152,0.00011377,2]
[326834458,1715482231997,-7966.72183934,0.00011377,2]
[326834459,1715482232009,-12700.14747914,0.00011377,2]
[326834461,1715482232018,-480.0,0.00011379,2]
[326834462,1715482232028,-452.74,0.00011519,2]
[326834464,1715482232038,-250.0,0.00011524,2]
[326834466,1715482232051,-35335.7117512,0.00011558,2]
[326834468,1715482232060,-250.0,0.0001161,2]
[326834470,1715482232070,-174.59,0.00011649,2]
[326834472,1715482232080,-683.32093934,0.00011698,2]
[326834473,1715482232091,-208.5,0.0001179,2]
[326834474,1715482232101,-256.676,0.0001189,2]
[326834475,1715482232110,-2651.2496,0.0001189,2]
[326834476,1715482232120,-520.0,0.0001199,2]
[326834477,1715482232130,-1000.0,0.00012,2]
[326834478,1715482232144,-28190.64,0.00012055,2]
[326834479,1715482232154,-1053.11171457,0.00012348,7]
[326834481,1715482232163,-200.0,0.000124,4]
[326834482,1715482232173,-621.1765,0.00012448,2]
[326834483,1715482232182,-500.0,0.000125,4]
[326834484,1715482232192,-800.0,0.000126,4]
[326834485,1715482232211,-181.33,0.00012618,2]
[326834486,1715482232222,-3503.24646015,0.00012646,2]
[326834487,1715482232233,-1100.0,0.000127,4]
[326834488,1715482232243,-1400.0,0.000128,4]
[326834489,1715482232253,-480.0,0.00012801,2]
[326834490,1715482232263,-3034.28086853,0.00012866,2]
[326834491,1715482232273,-8280.22154599,0.00012868,2]
[326834492,1715482232283,-5309.52392642,0.00012868,2]
[326834493,1715482232293,-173.25302518,0.00012869,2]
[326834494,1715482232303,-7716.5633,0.000129,2]
[326834495,1715482232313,-165.11469394,0.000129,2]
[326834496,1715482232323,-158.44069889,0.000129,2]
[326834497,1715482232334,-4095.46054438,0.000129,2]
[326834498,1715482232344,-182.038433,0.000129,2]
[326834499,1715482232354,-200.0,0.000129,4]
[326834500,1715482232364,-170.33571166,0.000129,2]
[326834501,1715482232373,-317.77715591,0.000129,2]
[326834502,1715482232383,-980.81238143,0.000129,2]
[326834503,1715482232393,-4765.24124118,0.000129,2]
[326834504,1715482232403,-191.92118406,0.000129,2]
[326834505,1715482232413,-298.78944632,0.000129,2]
[326834506,1715482232423,-75878.89490862,0.0001295,3]
[326834507,1715482232434,-170.42745763,0.0001299,2]
[326834508,1715482232444,-155.1,0.0001299,2]
[326834509,1715482232454,-155.1,0.0001299,2]
[326834510,1715482232464,-263.52186691,0.00012998,2]
[326834511,1715482232474,-155.0,0.00012998,2]
[326834512,1715482232485,-282.43030118,0.00012998,2]
[326834513,1715482232494,-386.1897029,0.00012998,2]
[326834514,1715482232504,-159.34274781,0.00012998,2]
[326834515,1715482232514,-4441.56857018,0.00012998,2]
[326834516,1715482232524,-274.78124919,0.00012998,2]
[326834517,1715482232534,-516.6341135,0.00012998,2]
[326834518,1715482232544,-23137.25057936,0.00012998,2]
[326834519,1715482232554,-357.3446781,0.00012998,2]
[326834520,1715482232563,-161.01374764,0.00012998,2]
[326834521,1715482232573,-8673.10064129,0.00012998,2]
[326834522,1715482232584,-530.07157126,0.00012998,2]
[326834523,1715482232594,-417.9760974,0.00012998,2]
[326834524,1715482232604,-1049.55768107,0.00012998,2]
[326834525,1715482232614,-221.54791872,0.00012998,2]
[326834526,1715482232624,-2000.00520981,0.00012998,2]
[326834527,1715482232634,-185.07793901,0.00012998,2]
[326834528,1715482232644,-1245.59307798,0.00012998,2]
[326834529,1715482232654,-267.26278666,0.00012998,2]
[326834530,1715482232664,-1076.73247516,0.00012999,2]
[326834531,1715482232674,-295.66257591,0.00012999,2]
[326834532,1715482232684,-253.36656469,0.00012999,2]
[326834533,1715482232694,-189.61661566,0.00012999,2]
[326834534,1715482232704,-207.84030149,0.00012999,2]
[326834535,1715482232714,-5863.25440605,0.00012999,2]
[326834536,1715482232724,-740.16373769,0.00012999,3]
[326834537,1715482232734,-91856.65432552,0.00013,2]
[326834538,1715482232745,-1958.35252431,0.00013,2]
[326834539,1715482232758,-33812.71672177,0.00013,2]
[326834540,1715482232843,-259.86200001,0.00013,2]
[326834541,1715482232856,-357.4799971,0.00013,2]
[326834542,1715482232868,-418.90217464,0.00013,2]
[326834543,1715482232880,-667.36237526,0.00013,2]
[326834544,1715482232893,-781.95019923,0.00013,2]
[326834545,1715482232910,-2130.44985288,0.00013,2]
[326834546,1715482232923,-827.13712285,0.00013,2]
[326834547,1715482232936,-205645.78859138,0.00013,2]
[326834548,1715482232948,-180565.84175603,0.00013,2]
[326834549,1715482232960,-18266.78652647,0.00013,2]
[326834550,1715482232972,-544.0998858,0.00013,2]
[326834551,1715482232985,-6370.88873846,0.00013,2]
[326834552,1715482232997,-626.71201654,0.00013,2]
[326834553,1715482233009,-346.48303694,0.00013,2]
[326834554,1715482237883,-207.84030149,0.00012999,2]
[326834555,1715482237893,-143.29058157,0.00013,2]
[326834556,1715482237905,-22030.5002051,0.00013,2]
[326834557,1715482238094,-656.81963574,0.00012999,2]
[326834558,1715482238108,-5206.43477031,0.00012999,2]
[326834559,1715482238117,-21084.84986612,0.00013,2]
[326834560,1715482238129,-580.55516096,0.00013,2]
[326834561,1715482238141,-633.8742985,0.00013,2]
[326834562,1715482238153,-23171.24287949,0.00013,2]
[326834563,1715482238164,-309.66101938,0.00013,2]
[326834564,1715482238176,-946.67592046,0.00013,2]
[326834565,1715482238187,-439.45564214,0.00013,2]
[326834566,1715482238304,-3232.3,0.00013,2]
[326834567,1715482238316,-112308.953858,0.00013,2]
[326834568,1715482238327,-835.11710452,0.00013,2]
[326834569,1715482238339,-27561.82820925,0.00013,2]
[326834570,1715482238351,-6628.30439943,0.00013,2]
[326834576,1715482240358,-732.13211129,0.00013,2]
[326834579,1715482243465,-168.37955163,0.00012999,2]
[326834580,1715482243475,-4848.5169504,0.00012999,2]
[326834581,1715482243484,-828598.30967399,0.00013,2]
[326834582,1715482243495,-11564.71894032,0.00013,2]
[326834584,1715482246216,-155.0,0.0001065,2]
[326834585,1715482246226,-3103.40250713,0.00013,2]
[326834594,1715482351323,539.7,0.00025,120]
[326834596,1715482378727,-155.0,9.748e-05,2]
[326834598,1715482397711,-164.74594414,9.748e-05,2]
[326834600,1715482418132,-399.9989112,9.747e-05,2]
[326834602,1715482431967,-150.0,9.746e-05,2]
[326834604,1715482449875,-344.14475486,9.745e-05,2]
[326834605,1715482469748,-409.862659,9.744e-05,2]
[326834606,1715482501600,-155.0,9.743e-05,2]
[326834607,1715482501624,-2.015591,9.743e-05,2]
[326834609,1715482527969,-150.0,9.742e-05,2]
[326834610,1715482567680,-5.0,9.742e-05,2]
[326834611,1715482567703,-165.72391799,9.743e-05,2]
[326834612,1715482567726,-156.53951523,9.743e-05,2]
[326834613,1715482567748,-155.0,9.743e-05,2]
[326834614,1715482567772,-229.87006878,9.743e-05,2]
[326834623,1715483345287,-534.10085754,9.74e-05,2]
[326834624,1715483345307,-166.81757453,9.741e-05,2]
[326834625,1715483345327,-1243.91978297,9.741e-05,2]
[326834626,1715483345348,-35335.7117512,9.742e-05,2]
[326834627,1715483345368,-1147.01005855,9.743e-05,2]
[326834628,1715483345388,-9962.62197521,9.743e-05,2]
[326834629,1715483349118,-3913.0025,9.743e-05,2]
[326834630,1715483355995,-212335.71,9.743e-05,2]
[326834631,1715483367088,-2739.6264,9.743e-05,2]
[326834636,1715483432472,-172990.09095415,9.743e-05,2]
[326834639,1715483432484,-54101.60243352,9.743e-05,2]
[326834641,1715483432495,-482.87677638,9.743e-05,2]
[326834643,1715483432506,-559.18577829,9.743e-05,2]
[326834644,1715483432518,-484.28691844,9.743e-05,2]
[326834728,1715483444593,-89636.94846847,9.743e-05,2]
[326834729,1715483444603,-155.0,9.743e-05,2]
[326834730,1715483444612,-367.7567256,9.743e-05,2]
[326834731,1715483444621,-7548.94019738,9.743e-05,2]
[326834732,1715483444632,-608.97701227,9.743e-05,2]
[326834733,1715483444644,-150.0,9.743e-05,2]
[326834734,1715483444660,-152.64407767,9.743e-05,2]
[326834735,1715483444669,-78.59281659,9.744e-05,2]
[326834736,1715483444678,-2098.69244015,9.746e-05,2]
[326834737,1715483444687,-416.98431453,9.746e-05,2]
[326834738,1715483444698,-345.8694379,9.747e-05,2]
[326834739,1715483444708,-1238.67570928,9.75e-05,2]
[326834740,1715483444717,-712.13350292,0.0001,2]
[326834741,1715483444726,-250.0,0.00011878,2]
[326834742,1715483444736,-23890.0,0.00011994,2]
[326834743,1715483444746,-1000.0,0.00012173,2]
[326834744,1715483444756,-301.15,0.00012227,2]
[326834745,1715483444765,-250.0,0.0001227,2]
[326834746,1715483444775,-208.5,0.00012337,2]
[326834747,1715483444784,-2455.83283812,0.0001266,2]
[326834748,1715483444793,-406.26226548,0.0001271,2]
[326834749,1715483444803,-150.99,0.00012755,2]
[326834750,1715483444812,-22810.19297128,0.00012868,2]
[326834751,1715483444822,-173.25302519,0.00012869,2]
[326834752,1715483444832,-158.44069888,0.000129,2]
[326834753,1715483444841,-3888.36724668,0.000129,2]
[326834754,1715483444850,-1062.63110294,0.000129,2]
[326834755,1715483444859,-185.33165285,0.000129,2]
[326834756,1715483444869,-155.1,0.0001299,2]
[326834757,1715483444878,-306.03989459,0.00012998,2]
[326834758,1715483444887,-156.38443489,0.00012998,2]
[326834759,1715483444896,-157.45369274,0.00012998,2]
[326834760,1715483444906,-10454.07635838,0.00012998,2]
[326834761,1715483444915,-155.0,0.00012998,2]
[326834762,1715483444924,-317.63013013,0.00012998,2]
[326834763,1715483444933,-160.94475633,0.00012999,2]
[326834764,1715483444942,-275.05268019,0.00012999,2]
[326834765,1715483444951,-155.43071651,0.00012999,2]
[326834766,1715483444961,-175.75116173,0.00012999,2]
[326834767,1715483444970,-155.79798778,0.00012999,2]
[326834768,1715483444979,-209.10332603,0.00012999,2]
[326834769,1715483444988,-1258.44548734,0.00012999,2]
[326834770,1715483444997,-1224.08334461,0.00012999,2]
[326834771,1715483445008,-246.25874054,0.00012999,2]
[326834772,1715483445017,-155.57858742,0.00012999,2]
[326834773,1715483445026,-9635.73622343,0.00012999,2]
[326834774,1715483445036,-212.87445786,0.00012999,2]
[326834775,1715483445045,-168.37955163,0.00012999,2]
[326834776,1715483445054,-5863.25440605,0.00012999,2]
[326834777,1715483445063,-37314.14598653,0.00013,2]
[326834778,1715483445075,-49851.27061797,0.00013,2]
[326834779,1715483445084,-153160.7576207,0.00013,2]
[326834780,1715483445093,-3150.927784,0.00013,2]
[326834781,1715483445102,-428739.21502667,0.00013,2]
[326834782,1715483445114,-21144.08965766,0.00013,2]
[326834783,1715483445125,-1777.0,0.00013,2]
[326834784,1715483445337,-101234.63561195,0.00013,2]
[326834785,1715483445985,-171.79565419,9.743e-05,2]
[326834786,1715483445994,-261.85910909,0.00013,2]
[326834787,1715483446006,-358.8200025,0.00013,2]
[326834788,1715483446019,-337.374,0.00013,2]
[326834789,1715483446030,-3258.19472346,0.00013,2]
[326834790,1715483446159,-390.82579448,0.00013,2]
[326834791,1715483446170,-2800.0,0.00013,2]
[326834792,1715483446182,-9894.76560632,0.00013,2]
[326834793,1715483446193,-65369.14965712,0.00013,2]
[326834794,1715483446202,-98784.16328291,0.00013,2]
[326834795,1715483446213,-552.1578887,0.00013,2]
[326834796,1715483446224,-8590.43286449,0.00013,2]
[326834797,1715483446236,-891.88699385,0.00013,2]
[326834798,1715483446246,-29019.44206654,0.00013,2]
[326834799,1715483446258,-7985.55807276,0.00013,2]
[326834800,1715483446270,-49802.6402514,0.00013,2]
[326834801,1715483446426,-838.84059321,0.00013,2]
[326834802,1715483446932,-5219.43297691,0.000129,2]
[326834803,1715483446942,-828395.77319911,0.00013,2]
[326834804,1715483446954,-931.14427352,0.00013,2]
[326834805,1715483446966,-2301.92000906,0.00013,2]
[326834806,1715483447082,-2992.66047825,0.00013,2]
[326834807,1715483447093,-263.95605343,0.00013,2]
[326834808,1715483447103,-549.89009576,0.00013,2]
[326834809,1715483447115,-2189.73762716,0.00013,2]
[326834810,1715483447126,-302.0,0.00013,2]
[326834811,1715483447320,-744.5,0.00013,2]
[326834812,1715483448566,-101344.16313172,0.00013,2]
[326834813,1715483497085,-390.825794,9.743e-05,2]
[326834814,1715483545215,-298.406437,9.643e-05,2]
[326834815,1715483743587,1319.39612488,9.641e-05,3]
[326834816,1715483972117,150.0,8.63e-05,2]
[326834817,1715483972142,16.16,8.63e-05,2]
[326834818,1715483989940,150.0,8.228e-05,2]
[326834819,1715483989963,84.08,8.228e-05,2]
[326834820,1715484008620,150.0,8.12e-05,2]
[326834821,1715484008642,50.0,8.12e-05,2]
[326834822,1715484030904,150.0,8.12e-05,2]
[326834823,1715484030927,5.0,8.12e-05,2]
[326834824,1715484044904,150.0,8.12e-05,2]
[326834825,1715484044926,46.11282967,8.12e-05,2]
[326834826,1715484054723,150.0,8.619e-05,2]
[326834827,1715484054745,150.0,8.619e-05,2]
[326834828,1715484054767,150.0,8.619e-05,2]
[326834829,1715484054788,150.0,8.619e-05,2]
[326834830,1715484054809,150.0,8.619e-05,2]
[326834831,1715484054829,150.0,8.619e-05,2]
[326834832,1715484054849,150.0,8.619e-05,2]
[326834833,1715484054869,150.0,8.619e-05,2]
[326834834,1715484054889,150.0,8.619e-05,2]
[326834835,1715484054910,186.15,8.619e-05,2]
[326834836,1715484054933,1967.384558,8.619e-05,2]
[326834837,1715484055558,1334.98,8.218e-05,2]
[326834838,1715484065591,150.0,6.496e-05,2]
[326834839,1715484065613,150.0,6.496e-05,2]
[326834840,1715484065636,150.0,6.496e-05,2]
[326834841,1715484065658,96.87748124,6.496e-05,2]
[326834842,1715484072960,289.57884947,8.12e-05,2]
[326834843,1715484077537,150.0,8.12e-05,2]
[326834844,1715484077560,211.90993658,8.12e-05,2]
[326834845,1715484083520,150.0,6.574e-05,2]
[326834846,1715484083540,150.0,6.574e-05,2]
[326834847,1715484083560,157.00968909,6.574e-05,2]
[326834848,1715484083583,89.86779215,6.574e-05,2]
[326834849,1715484085475,150.0,8.134e-05,2]
[326834850,1715484085496,150.0,8.134e-05,2]
[326834851,1715484085519,1825.63,8.134e-05,2]
[326834852,1715484093536,150.0,8.218e-05,2]
[326834853,1715484093559,150.0,8.218e-05,2]
[326834855,1715484093586,61.90993658,8.218e-05,2]
[326834856,1715484102824,546.87748124,6.574e-05,2]
[326834857,1715484109555,150.0,8.218e-05,2]
[326834858,1715484109577,150.0,8.218e-05,2]
[326834859,1715484109598,150.0,8.218e-05,2]
[326834860,1715484109619,150.0,8.218e-05,2]
[326834861,1715484109639,298.22227127,8.218e-05,2]
[326834862,1715484109660,150.0,8.218e-05,2]
[326834863,1715484109682,533478.72609223,8.218e-05,2]
[326834864,1715484113880,150.0,8.218e-05,2]
[326834865,1715484113903,211.90993658,8.218e-05,2]
[326834866,1715484117534,150.0,6.574e-05,2]
[326834867,1715484117556,150.0,6.574e-05,2]
[326834868,1715484117579,150.0,6.574e-05,2]
[326834869,1715484117600,96.87748124,6.574e-05,2]
[326834870,1715484127551,150.0,8.218e-05,2]
[326834871,1715484127575,150.0,8.218e-05,2]
[326834872,1715484127598,149.99999999,8.218e-05,2]
[326834873,1715484133550,361.90993658,8.218e-05,2]
[326834874,1715484135477,150.0,8.218e-05,2]
[326834875,1715484135498,150.0,8.218e-05,2]
[326834876,1715484135522,138.98596524,8.218e-05,2]
[326834877,1715484135839,11.01403476,6.574e-05,2]
[326834878,1715484135862,150.0,6.574e-05,2]
[326834879,1715484135885,150.0,6.574e-05,2]
[326834880,1715484135906,150.0,6.574e-05,2]
[326834881,1715484135929,85.86344648,6.574e-05,2]
[326834882,1715484153573,450.38354748,5.259e-05,2]
[326834883,1715484155563,150.0,6.574e-05,2]
[326834884,1715484155585,211.90993658,6.574e-05,2]
[326834885,1715484172776,1044.37486036,6.574e-05,2]
[326834886,1715484179538,366.73716665,6.574e-05,2]
[326834887,1715484189778,1159.85432822,6.574e-05,2]
[326834889,1715484193128,23900.0,7.888e-05,2]
[326834890,1715484223204,13813.0,8.6e-05,2]
[326834892,1715484309284,225.72,7.841e-05,2]
[326834893,1715484309608,154.16,7.841e-05,2]
[326834894,1715484309825,154.16,7.843e-05,2]
[326834895,1715484310037,154.16,7.845e-05,2]
[326834896,1715484310238,154.16,7.848e-05,2]
[326834897,1715484310512,154.16,7.85e-05,2]
[326834898,1715484310688,154.16,7.852e-05,2]
[326834899,1715484310918,154.16,7.854e-05,2]
[326834900,1715484311519,154.16,7.857e-05,2]
[326834901,1715484311610,154.16,7.859e-05,2]
[326834902,1715484311711,154.16,7.861e-05,2]
[326834903,1715484312143,154.16,7.864e-05,2]
[326834904,1715484312214,154.16,7.866e-05,2]
[326834905,1715484312287,154.16,7.868e-05,2]
[326834906,1715484312433,154.16,7.871e-05,2]
[326834907,1715484312666,154.16,7.873e-05,2]
[326834908,1715484312903,154.16,7.875e-05,2]
[326834909,1715484313337,154.16,7.878e-05,2]
[326834910,1715484313569,154.16,7.88e-05,2]
[326834911,1715484352998,537.18384349,8.63e-05,2]
[326834912,1715484354423,155.0,8.63e-05,2]
[326834913,1715484357192,2220.53511034,8.63e-05,2]
[326834914,1715484357339,155.0,8.63e-05,2]
[326834915,1715484357875,1379.74444204,8.63e-05,2]
[326834917,1715484359631,3087.54678534,8.63e-05,2]
[326834918,1715484362068,250.0,7.81e-05,2]
[326834919,1715484363268,262.86247652,8.629e-05,2]
[326834920,1715484364437,370.82893179,8.629e-05,2]
[326834921,1715484365885,155.0,8.63e-05,2]
[326834922,1715484366105,7510.61458823,8.63e-05,2]
[326834923,1715484368007,4739.38262032,8.63e-05,2]
[326834924,1715484368563,1244.2402654,8.63e-05,2]
[326834925,1715484372010,200.77628892,8.63e-05,2]
[326834926,1715484377124,5558.95156203,8.63e-05,2]
[326834927,1715484383501,155.0,8.63e-05,2]
[326834928,1715484383927,4424.88144007,8.63e-05,2]
[326834929,1715484384363,535.28534802,8.63e-05,2]
[326834930,1715484386484,642.95246665,8.63e-05,2]
[326834931,1715484387127,1063.06077755,8.63e-05,2]
[326834932,1715484388103,155.0,8.63e-05,2]
[326834933,1715484388870,162.46980569,8.63e-05,2]
[326834934,1715484389911,2360.54611263,8.63e-05,2]
[326834935,1715484390150,-157.60689553,8.631e-05,2]
[326834936,1715484390171,-18.4964976,8.631e-05,2]